Cogmind - Beta 14 @@@ ROGUE MODE // 2024.10.04 @ 17:46:41 Player: Zaros426 Result: Destroyed by S-27 Virus with Autogun Performance ------------- Evolutions (4) 2000 Regions Visited (18) 3600 Robots Destroyed (346) 1730 Value Destroyed (13165) 13165 Prototype IDs (57) 1140 Alien Tech Used (0) 0 Bonus (7740) 7740 TOTAL SCORE: 29375 Bonus ------- High Alert Combat Kills 2581 Follower Combat Kills 2051 Entered Garrisons 1000 Used RIF Installer 2000 Aligned with FarCom 300 Friendly Fire -192 Cogmind --------- Core Integrity 0/850 Matter 210/300 Energy 290/290 System Corruption 34% Temperature Cool (0) Movement Treading (160) Location -6/Garrison Parts ------- > --- POWER (1) -------- Improved Deuterium Engine > --- PROPULSION (4) --- Light Treads Light Treads Improved Medium Treads Flexi-carbon Leg > --- UTILITY (8) ------ Advanced Heat Sink Lightpack 2.0 Improved Reaction Control System Layered Light Armor Plating Graphene Brace Relay Coupler [Heavy] (18) > --- WEAPON (2) ------- Heavy Machine Gun Field Lobotomy Kit > --- INVENTORY (40) --- Improved Deuterium Engine Reinforced Deuterium Engine Hybrid Deuterium Engine Antimatter Reactor Antimatter Reactor Huge Storage Unit Energy Well (350) Enhanced Optical Array Experimental Sensor Array Advanced Signal Interpreter Launcher Loader Transmission Jammer Improved Light Armor Plating Layered Light Armor Plating Damper Plating System Shield Relay Coupler [NC] (36) Improved Dynamic Insulation System High-powered Tractor Beam Heavy EM Shotgun Phase Cannon Advanced Assault Cannon Remote Datajack Peak State ------------ > --- POWER ------------ Antimatter Reactor > --- PROPULSION ------- Heavy Treads Heavy Treads > --- UTILITY ---------- Improved Cooling System Lightpack 2.0 Seismic Detector Force Field Hacking Suite Relay Coupler [NC] > --- WEAPON ----------- Nova Cannon Improved KE Penetrator > --- INVENTORY -------- Antimatter Reactor Antimatter Reactor Improved Medium Treads Heavy Treads Improved Cooling System Huge Storage Unit Energy Well Experimental Sensor Array Advanced Signal Interpreter Advanced Signal Interpreter Launcher Loader Transmission Jammer ECM Suite Damper Plating Graphene Brace High-powered Tractor Beam Improved Spread Laser Thermic Laser Improved Datajack Remote Datajack Field Lobotomy Kit Great Axe [Rating: 104] Favorites ----------- Power Heavy Ion Engine Engine Heavy Ion Engine Power Core Nuclear Core Reactor Antimatter Reactor Propulsion Light Treads Treads Light Treads Leg Flexi-carbon Leg Wheel Wheel Hover Unit Cooled Airjet Flight Unit Cesium-ion Thruster Utility Hacking Suite Device Improved Heat Sink Storage High-capacity Storage Unit Processor Advanced Targeting Computer Hackware Hacking Suite Protection Improved Light Armor Plating Weapon Improved Light Cannon Energy Gun Precision Beam Rifle Energy Cannon Heavy Plasma Cannon Ballistic Gun Improved Assault Rifle Ballistic Cannon Improved Light Cannon Launcher Missile Launcher Special Weapon Remote Datajack Slashing Weapon Scythe Special Melee Weapon Datajack Build | -11 -10 -10 -9 -9 -9 -8 -8 -8 -8 -8 -7 -7 -6 -6 -6 -6 -6 -6 ------- Run | Yrd Mat Min Mat Min Exi Min Mat Gar Mat Gar Fac Gar Fac Was Fac Gar Fac Gar Slots Evolved 8 | . . . 2 . . . 2 . . . 2 . 2 . . . . . Power . | . . . . . . . . . . . . . . . . . . . Propulsion 2 | . . . . . . . . . . . 1 . 1 . . . . . Utility 6 | . . . 2 . . . 2 . . . 1 . 1 . . . . . Weapon . | . . . . . . . . . . . . . . . . . . . Parts Attached 381 | 7 7 1 28 4 3 3 64 21 18 17 5 20 36 24 25 51 19 28 Power 20 | 1 . 1 4 . . . 3 1 1 . . 1 1 2 . 3 . 2 Engine 12 | 1 . 1 4 . . . 1 . 1 . . 1 1 . . 1 . 1 Core 3 | . . . . . . . 2 1 . . . . . . . . . . Reactor 5 | . . . . . . . . . . . . . . 2 . 2 . 1 Propulsion 71 | 2 . . 4 1 . . 18 3 5 1 3 2 3 5 2 8 4 10 Treads 51 | 2 . . 4 1 . . 12 3 3 1 2 2 3 5 2 7 1 3 Leg 10 | . . . . . . . 4 . . . . . . . . 1 3 2 Wheel 2 | . . . . . . . . . 2 . . . . . . . . . Hover 1 | . . . . . . . . . . . 1 . . . . . . . Flight 7 | . . . . . . . 2 . . . . . . . . . . 5 Utility 147 | 2 3 . 9 1 2 1 20 8 4 6 2 9 17 6 16 21 11 9 Device 84 | 1 . . 6 1 1 . 7 7 2 4 1 4 9 5 13 10 7 6 Storage 12 | 1 2 . 1 . 1 1 3 . . . 1 . 1 . 1 . . . Processor 4 | . 1 . . . . . . 1 . . . . . . . 1 1 . Hackware 23 | . . . . . . . 2 . 2 2 . 5 5 . . 5 2 . Protection 24 | . . . 2 . . . 8 . . . . . 2 1 2 5 1 3 Artifact . | . . . . . . . . . . . . . . . . . . . Weapon 143 | 2 4 . 11 2 1 2 23 9 8 10 . 8 15 11 7 19 4 7 Energy Gun 28 | 2 . . . . . . 10 . . . . . 8 2 4 2 . . Energy Cannon 39 | . . . 2 . . . 4 7 5 6 . 4 . 3 2 3 1 2 Ballistic Gun 28 | . 2 . 3 . . 2 2 . . . . . . 3 1 10 2 3 Ballistic Cannon 12 | . 2 . 4 1 . . 4 . . . . . . . . 1 . . Launcher 6 | . . . . . . . 3 1 2 . . . . . . . . . Special Weapon 19 | . . . . . . . . . . 3 . 4 6 1 . 3 . 2 Impact Weapon . | . . . . . . . . . . . . . . . . . . . Slashing Weapon 5 | . . . 2 1 . . . 1 . 1 . . . . . . . . Piercing Weapon . | . . . . . . . . . . . . . . . . . . . Special Melee Weapon 6 | . . . . . 1 . . . 1 . . . 1 2 . . 1 . Unidentified Prototypes 11 | . . . 4 . . . 1 . . . 1 . 1 2 . 2 . . Corrupted Parts 1 | . . . . . . . . . . . . . . 1 . . . . System Corruption 2 | . . . . . . . . . . . . . . 2 . . . . Parts Lost 59 | . . . 4 3 . . 13 4 2 1 . 1 2 1 8 9 6 5 Power 3 | . . . . . . . 1 1 . . . . . . . 1 . . Propulsion 19 | . . . 1 1 . . 1 1 1 . . . 2 1 2 2 5 2 Utility 22 | . . . 2 1 . . 7 1 . 1 . 1 . . 4 3 . 2 Weapon 15 | . . . 1 1 . . 4 1 1 . . . . . 2 3 1 1 Highest Loss Streak 10 | . . . 2 3 . . 10 3 2 1 . 1 1 1 2 4 4 4 To Critical Strikes 1 | . . . 1 . . . . . . . . . . . . . . . Average Slot Usage (%) 88 | . 100 100 87 77 75 77 96 87 99 99 100 98 96 73 72 76 80 77 Engine 6 | . 14 14 10 11 11 11 6 . 7 9 7 7 6 1 . 2 . 1 Core 1 | . . . . . . . 2 8 1 . . . . . . . . . Treads 20 | . 28 28 21 22 22 22 17 17 16 18 23 23 24 15 12 21 17 4 Device 10 | . 11 . 4 11 9 11 16 7 17 17 23 12 13 4 16 7 7 16 Storage 9 | . 14 14 11 11 11 11 12 9 9 9 7 7 6 6 6 6 6 6 Processor 5 | . 2 14 10 . . . . 8 9 9 7 7 6 4 . 5 6 . Hackware 10 | . . . . . . . 14 18 17 18 15 23 22 16 13 10 18 6 Protection 3 | . . . 6 . . . 7 5 . . . . 1 4 2 3 . 7 Energy Gun 2 | . . . . . . . 10 . . . . . 8 1 3 . . . Energy Cannon 5 | . . . 4 . . . 5 5 17 16 15 12 1 5 5 . 9 3 Ballistic Gun 3 | . 2 . 3 11 1 21 . . . . . . . . 2 7 2 5 Ballistic Cannon 5 | . 24 28 12 9 . . . 5 . . . . . . . 1 . . Peak Build Rating 104 | 7 11 13 28 24 51 52 50 44 47 47 57 53 53 90 104 97 99 103 Average Rating 43 | 5 10 11 22 21 34 30 39 42 45 43 52 46 48 80 94 83 91 94 On Entrance 43 | . 7 11 13 23 22 51 25 40 44 47 44 53 46 49 88 80 91 95 Naked Turns . | . . . . . . . . . . . . . . . . . . . Heaviest Build 158 | 14 34 35 70 57 55 56 80 80 70 70 71 71 106 158 158 53 50 50 Greatest Support 140 | 40 40 40 40 40 40 40 60 40 42 40 60 60 80 140 140 120 80 60 Greatest Overweight (x) 12 | . . . 1 1 1 1 2 1 6 1 1 1 1 2 1 . 12 2 Average Overweight (x) . | . . . . 1 . . . 1 1 1 1 1 . 1 . . . . Largest Inventory Capacity 40 | 8 15 15 20 20 40 40 20 20 20 20 20 20 25 25 40 40 40 40 Average Capacity 22 | 6 14 15 16 20 29 24 20 20 20 20 20 20 23 25 37 40 40 40 Most Carried 38 | 5 15 15 20 18 20 19 20 20 20 20 20 20 24 25 28 38 38 37 Average Carried 20 | 2 12 14 15 16 16 18 19 19 19 19 19 19 21 24 26 30 35 31 Final Capacity 40 | 8 15 15 20 20 40 20 20 20 20 20 20 20 25 25 40 40 40 40 Final Carried 37 | 3 15 15 18 16 17 19 20 20 20 20 20 20 23 25 28 37 37 27 Class Distribution -------------------- 38% | Mutant 21% | Scavenger-Mutant 20% | Hacker-Mutant 14% | Hauler-Mutant 5% | Bothacker-Mutant Dominant Class ---------------- Mutant | -10/Materials Mutant | -10/Mines Mutant | -9/Materials Mutant | -9/Mines Mutant | -9/Exiles Mutant | -8/Mines Hacker-Mutant | -8/Materials Scavenger-Mutant | -8/Garrison Hacker-Mutant | -8/Materials Hacker-Mutant | -8/Garrison Scavenger-Mutant | -7/Factory Bothacker-Mutant | -7/Garrison Scavenger-Mutant | -6/Factory Scavenger-Mutant | -6/Waste Hauler-Mutant | -6/Factory Hauler-Mutant | -6/Garrison Hauler-Mutant | -6/Factory Hauler-Mutant | -6/Garrison Resources | -11 -10 -10 -9 -9 -9 -8 -8 -8 -8 -8 -7 -7 -6 -6 -6 -6 -6 -6 ----------- Run | Yrd Mat Min Mat Min Exi Min Mat Gar Mat Gar Fac Gar Fac Was Fac Gar Fac Gar Matter Collected 8328 | 270 389 267 1060 112 . 269 815 1168 298 249 . 285 455 412 450 1207 295 327 Remotely 128 | . . . . . . . . 128 . . . . . . . . . . Salvage Created 12556 | 156 527 282 1387 16 . 278 2751 799 1076 845 . 84 809 1199 904 646 590 207 Parts 665 | 12 35 14 111 2 . 22 154 43 65 31 . 3 34 17 38 32 42 10 Haulers Intercepted 16 | . 2 . 5 . . . 6 . 1 . . . 2 . . . . . Recyclers Shooed 9 | . 1 . 1 . . . 2 . 3 . . . 1 . . . 1 . Parts Field Recycled . | . . . . . . . . . . . . . . . . . . . Retrieved Matter . | . . . . . . . . . . . . . . . . . . . Parts Self-Destructed . | . . . . . . . . . . . . . . . . . . . Prevented . | . . . . . . . . . . . . . . . . . . . Kills | -11 -10 -10 -9 -9 -9 -8 -8 -8 -8 -8 -7 -7 -6 -6 -6 -6 -6 -6 ------- Run | Yrd Mat Min Mat Min Exi Min Mat Gar Mat Gar Fac Gar Fac Was Fac Gar Fac Gar Combat Hostiles Destroyed 242 | . 13 6 34 1 . 10 46 33 25 17 . 3 9 4 18 12 7 4 Melee 1 | . . . . . . . . . . . . . . . . . . 1 Guns 74 | . . . . 1 . 10 34 . . . . . 8 . 9 11 1 . Cannons 134 | . 13 6 34 . . . 4 28 11 15 . 3 . 3 8 1 5 3 AOE 24 | . . . . . . . 6 5 12 . . . . . 1 . . . Classes Destroyed 21 | 2 5 . 5 1 . . 2 2 1 . . . . 1 . 1 . 1 Worker 22 | . 1 . 4 . . . 9 . 1 . . . 4 . . . 3 . Builder 17 | . . . 3 . . 1 5 . 4 . . . 1 . . . 3 . Tunneler 6 | 4 . . 1 1 . . . . . . . . . . . . . . Hauler 16 | . 2 . 5 . . . 6 . 1 . . . 2 . . . . . Recycler 20 | 1 5 3 1 . . . 7 . 2 . . . 1 . . . . . Mechanic 3 | . . . 1 . . . 1 . . . . . . 1 . . . . Operator 4 | . . . 2 . . . 2 . . . . . . . . . . . Watcher 15 | . 3 . 4 . . . 4 . 2 . . . . . . . 2 . Swarmer 73 | . 9 3 11 . . 7 16 9 4 3 . 2 3 . 5 1 . . Saboteur 1 | . . . . . . . . . . . . . . . . . . 1 Grunt 103 | . 4 3 14 . . 3 18 15 10 13 . . 2 . 10 6 3 2 Brawler 2 | . . . . . . . . . 1 . . . . . . . . 1 Duelist 8 | . . . 1 . . . 1 . 4 . . . 2 . . . . . Protector 3 | . . . . . . . . 1 2 . . . . . . . . . Sentry 30 | . . . 8 . . . 8 4 3 1 . . 1 . . 4 1 . Demolisher 2 | . . . . 1 . . . 1 . . . . . . . . . . Specialist 1 | . . . . . . . . . . . . . . . . 1 . . Hunter 9 | . . . . . . . 2 . 1 1 . 1 . . 2 . 2 . Programmer 6 | . . . . . . . . 3 . . . . 1 . 1 . 1 . Heavy 1 | . . . . . . . 1 . . . . . . . . . . . Compactor 4 | . . . . . . . . . . . . . . 4 . . . . Best Kill Streak 16 | 4 4 2 6 1 . 4 16 4 14 6 . 2 6 1 7 3 5 3 Combat Bots Only 10 | . 4 2 5 1 . 4 8 4 10 6 . 2 3 1 7 3 3 3 Max Kills in Single Turn 5 | 2 1 2 2 1 . 2 4 2 5 1 . 2 3 1 1 2 1 1 Gunslinging 1 | . . . . . . . 1 . . . . . 1 . . 1 . . Exploded 3 | . . . . . . . 1 2 3 . . . . . 1 . . . Melee 1 | . . . . . . . . . . . . . . . . . . 1 Uniques/NPCs Destroyed . | . . . . . . . . . . . . . . . . . . . Combat | -11 -10 -10 -9 -9 -9 -8 -8 -8 -8 -8 -7 -7 -6 -6 -6 -6 -6 -6 -------- Run | Yrd Mat Min Mat Min Exi Min Mat Gar Mat Gar Fac Gar Fac Was Fac Gar Fac Gar Hostile Shots Fired 1655 | . 36 23 201 10 . 29 297 163 56 57 . 34 92 1 218 253 64 121 Missed 475 | . 8 7 54 . . 10 74 48 18 15 . 9 31 . 62 79 15 45 Damage Taken 15676 | . 238 175 2064 307 . 183 2864 1392 629 510 . 267 737 30 2080 2379 768 1053 Core 1771 | . 65 11 258 8 . 25 261 77 45 101 . 57 75 30 151 271 132 204 Absorbed by Shields 922 | . . . . 64 . 72 230 . . 4 . . 130 10 402 10 . . Reduced by Siege Mode 247 | . . . . . . . . . . . . . . . 191 56 . . Regen/Repaired (Parts) 356 | . . . . . . . 77 . . . . . . 279 . . . . Core Remaining (%) 59 | 100 . 69 . . . 27 . . . 12 . 91 . . . . . . Volleys Fired 979 | 8 52 20 125 8 . 22 144 118 41 64 . 17 55 80 62 91 47 25 Largest 2 | 2 2 2 2 2 . 2 2 2 2 2 . 2 2 2 2 2 2 2 Hottest 188 | 90 78 78 107 91 . 46 126 126 180 180 . 180 180 146 188 143 170 115 Shots Fired 1625 | 16 104 40 235 15 . 44 267 125 80 119 . 25 78 93 109 145 89 41 Gun 545 | 16 . . 14 9 . 44 210 . . . . . 48 11 63 94 14 22 Cannon 983 | . 104 40 221 6 . . 49 119 72 108 . 17 11 76 45 24 75 16 Launcher 22 | . . . . . . . 8 6 8 . . . . . . . . . Special 75 | . . . . . . . . . . 11 . 8 19 6 1 27 . 3 Kinetic 734 | . 104 40 211 13 . 44 23 104 . . . . . 11 36 112 14 22 Thermal 662 | 16 . . 24 2 . . 197 2 28 108 . 12 59 76 41 6 75 16 Explosive 21 | . . . . . . . 7 6 8 . . . . . . . . . Electromagnetic 133 | . . . . . . . 40 13 44 . . 5 . . 31 . . . Robot Hit Streak 29 | 6 16 9 21 9 . 8 29 9 14 6 . 4 17 10 12 16 9 10 Robot Miss Streak 9 | 1 7 2 4 1 . 4 5 3 2 4 . 2 8 3 4 3 9 4 Penetration Max 1 | . . . . . . . . 1 . . . . . . 1 . . . Secondary Targets 11 | . . . . . . 2 6 . . . . . 1 . 1 1 . . Max Gunslinging Chain 1 | . . . . . . 1 1 . . . . . 1 . 1 1 . . Shots Hit Robots 1042 | 12 68 25 134 10 4 34 201 63 60 46 . 8 70 73 72 97 42 23 Core Hits 548 | 6 23 10 63 4 . 21 105 37 53 16 . 3 89 13 44 34 20 7 Critical Kills 7 | . . . . . . . . . . 1 . . 2 1 1 1 1 . Critical Parts Destroyed 3 | . . . . . . 1 . . . . . . . . 1 1 . . Critical Strikes 40 | . 3 . 5 . . 1 13 3 2 1 . . 2 3 3 3 1 . Burn 14 | . . . . . . . 13 . . . . . . . 1 . . . Meltdown 5 | . . . . . . . . . . 1 . . 2 1 . . 1 . Destroy 7 | . . . . . . 1 . . . . . . . 2 2 2 . . Blast 12 | . 3 . 5 . . . . 3 . . . . . . . 1 . . Corrupt 2 | . . . . . . . . . 2 . . . . . . . . . Melee Attacks 31 | . . . 6 1 4 . . 5 3 3 . . 2 3 . . 4 . Impact . | . . . . . . . . . . . . . . . . . . . Slashing 15 | . . . 6 1 . . . 5 . 3 . . . . . . . . Piercing . | . . . . . . . . . . . . . . . . . . . Sneak Attacks 9 | . . . . . 4 . . . . . . . 1 . . . 4 . Combat Hostiles . | . . . . . . . . . . . . . . . . . . . Follow-up Attacks . | . . . . . . . . . . . . . . . . . . . Damage Inflicted 29106 | 153 1427 548 3015 165 . 505 5147 3276 3409 1287 . 89 1540 2822 2231 1736 1223 533 Guns 7871 | 153 . . 133 106 . 505 2845 . . . . . 1249 254 960 1306 167 193 Cannons 16978 | . 1427 548 2752 59 . . 896 2639 1528 1287 . 89 291 2568 1075 430 1049 340 Explosions 4233 | . . . 130 . . . 1389 637 1881 . . . . . 196 . . . Melee . | . . . . . . . . . . . . . . . . . . . Ramming 24 | . . . . . . . 17 . . . . . . . . . 7 . Kinetic 10859 | . 1427 548 2633 125 . 505 365 2526 . . . . . 254 580 1536 167 193 Thermal 12310 | 153 . . 252 40 . . 2902 . 955 1287 . 65 1540 2568 959 200 1049 340 Explosive 3573 | . . . 104 . . . 1119 637 1663 . . . . . 50 . . . Electromagnetic 2340 | . . . 26 . . . 744 113 791 . . 24 . . 642 . . . Impact . | . . . . . . . . . . . . . . . . . . . Slashing . | . . . . . . . . . . . . . . . . . . . Piercing . | . . . . . . . . . . . . . . . . . . . Highest Corruption 34 | . . . 1 1 1 1 2 5 5 5 . . . 29 29 29 34 34 Average Corruption 10 | . . . 1 1 1 1 2 3 5 5 . . . 24 29 29 33 34 Corruption Purged . | . . . . . . . . . . . . . . . . . . . Corruption Blocked . | . . . . . . . . . . . . . . . . . . . Effects 420 | . . . . 14 4 1 43 47 25 28 . . . 53 62 69 54 20 Message Errors 88 | . . . . 2 . . 12 14 5 8 . . . 11 10 15 8 3 Matter Fused 91 | . . . . 4 2 . 6 10 4 4 . . . 16 10 16 12 7 Heat Flow Errors 43 | . . . . 2 . . 6 5 2 3 . . . 5 6 7 7 . Energy Discharges 57 | . . . . 4 1 . 5 5 6 5 . . . 7 4 9 6 5 Parts Rejected 6 | . . . . . . . . . . . . . . 3 2 1 . . Parts Fused 7 | . . . . . . 1 1 1 . . . . . . 2 . 1 1 Data Loss (minor) 53 | . . . . . . . 7 7 5 3 . . . 4 8 10 9 . Data Loss (major) 13 | . . . . . 1 . 2 2 1 1 . . . 2 1 1 2 . Misfires 22 | . . . . 1 . . 3 2 2 3 . . . 2 2 4 2 1 Alerts 8 | . . . . 1 . . . 1 . 1 . . . . 2 1 1 1 Misdirections 7 | . . . . . . . . . . . . . . 2 2 . 3 . Weapon Failures 25 | . . . . . . . 1 . . . . . . 1 13 5 3 2 Overload Shots . | . . . . . . . . . . . . . . . . . . . Overflow Damage 586 | . 62 7 67 . . . 106 260 43 35 . . 6 . . . . . Projectiles 388 | . 62 7 25 . . . 9 229 15 35 . . 6 . . . . . Explosions 198 | . . . 42 . . . 97 31 28 . . . . . . . . . Melee . | . . . . . . . . . . . . . . . . . . . Knockbacks 58 | . 18 6 20 . . . 1 13 . . . . . . . . . . Impact . | . . . . . . . . . . . . . . . . . . . Kinetic 55 | . 16 6 19 . . . 1 13 . . . . . . . . . . Secondary 3 | . 2 . 1 . . . . . . . . . . . . . . . Self-Inflicted Damage 399 | . . . 106 . . . 176 . 117 . . . . . . . . . Shots 13 | . . . 3 . . . 6 . 4 . . . . . . . . . Rammed 3 | . . . . . . . 2 . . . . . . . . . 1 . Targets Rammed 5 | . . . . . . . 3 . . . . . . . . . 2 . Kicked . | . . . . . . . . . . . . . . . . . . . Crushed 2 | . . . . . . . 1 . . . . . . . . . 1 . Highest Temperature 425 | 120 114 144 309 208 . 17 316 260 270 279 . 54 357 425 414 270 300 35 Average Temperature 86 | 44 33 48 82 71 . 7 112 79 74 59 . 17 56 144 95 62 76 8 Received Heat Transfer 4069 | . 30 93 642 . . 111 545 369 171 204 . 72 209 . 494 754 108 267 Effects 11 | . . . . 1 . . . 2 . . . . . 6 1 . 1 . Shutdowns 3 | . . . . . . . . . . . . . . 2 1 . . . Energy Bleed 5 | . . . . 1 . . . 2 . . . . . 1 . . 1 . Interference 2 | . . . . . . . . . . . . . . 2 . . . . Short Circuit 1 | . . . . . . . . . . . . . . 1 . . . . Siege Activations 5 | . . . . . . . . . . . . . . . 4 1 . . Total Turns 147 | . . . . . . . . . . . . . . . 120 27 . . Longest Duration 48 | . . . . . . . . . . . . . . . 48 27 . . Robots Corrupted 3 | . . . . . . . 1 . 2 . . . . . . . . . Combat Hostiles 3 | . . . . . . . 1 . 2 . . . . . . . . . Parts Fried 18 | . . . . . . . 4 3 6 . . . . 2 3 . . . Impact Corruptions . | . . . . . . . . . . . . . . . . . . . Robots Melted 7 | . . . . . . . 1 . . 2 . . 2 1 . . 1 . Combat Hostiles 6 | . . . . . . . 1 . . 2 . . 1 1 . . 1 . Parts Melted 39 | . . . 1 . . . 18 3 . 7 . . 4 2 1 1 2 . Heat Transferred 18061 | 421 . . 444 74 . . 6971 . 1361 2000 . 100 1490 2405 982 185 1221 407 Parts Sabotaged 10 | . . . . . . . . . . . . . . . . . . 10 Parts Stolen . | . . . . . . . . . . . . . . . . . . . Parts Stripped . | . . . . . . . . . . . . . . . . . . . Power Chain Reactions 11 | . . . 1 . . . 5 . 3 . . . . . 2 . . . Alert | -11 -10 -10 -9 -9 -9 -8 -8 -8 -8 -8 -7 -7 -6 -6 -6 -6 -6 -6 ------- Run | Yrd Mat Min Mat Min Exi Min Mat Gar Mat Gar Fac Gar Fac Was Fac Gar Fac Gar Peak Influence 2117 | 25 348 220 874 349 . 180 596 2117 1601 1828 959 906 487 98 216 639 656 454 Initial 1040 | . 16 135 64 324 . . 70 387 1031 1040 959 671 475 96 . 30 335 255 Average 501 | 14 89 152 488 107 . 83 238 1270 1343 1389 959 778 212 31 62 271 452 320 Maximum Alert Level 5 | . 1 1 3 1 . . 2 5 5 5 3 3 2 . 1 2 2 2 Low Security (%) 42 | 100 83 83 32 77 . 100 58 . . . . . 44 100 97 38 . . Level 1 15 | . 16 16 14 22 . . 21 1 . . . . 53 . 2 29 29 90 Level 2 12 | . . . 12 . . . 20 16 . . . 22 2 . . 31 70 9 Level 3 14 | . . . 40 . . . . 23 12 9 100 77 . . . . . . Level 4 10 | . . . . . . . . 18 82 75 . . . . . . . . Level 5 5 | . . . . . . . . 39 4 14 . . . . . . . . High Security . | . . . . . . . . . . . . . . . . . . . Max Security . | . . . . . . . . . . . . . . . . . . . Squads Dispatched 44 | . 3 . 4 . . . 10 . 6 . . . 8 . 8 . 5 . Investigation 17 | . 3 . 1 . . . 4 . 3 . . . 1 . 3 . 2 . Extermination 5 | . . . . . . . . . . . . . 2 . 1 . 2 . Reinforcement 9 | . . . 2 . . . 4 . . . . . 1 . 1 . 1 . Assault 4 | . . . 1 . . . . . 2 . . . 1 . . . . . Garrison 9 | . . . . . . . 2 . 1 . . . 3 . 3 . . . Intercept . | . . . . . . . . . . . . . . . . . . . Searches Triggered . | . . . . . . . . . . . . . . . . . . . Construction Impeded 3 | . . . . . . . 2 . . . . . . . . . 1 . Haulers Reinforced 2 | . . . . . . . . . . . . . 1 . 1 . . . Active Scanning Responses . | . . . . . . . . . . . . . . . . . . . Cargo Convoy Interrupts . | . . . . . . . . . . . . . . . . . . . Stealth | -11 -10 -10 -9 -9 -9 -8 -8 -8 -8 -8 -7 -7 -6 -6 -6 -6 -6 -6 --------- Run | Yrd Mat Min Mat Min Exi Min Mat Gar Mat Gar Fac Gar Fac Was Fac Gar Fac Gar Distress Signals 11 | . 1 . 4 . . . 2 . 2 . . . 1 . . . 1 . Communications Jammed . | . . . . . . . . . . . . . . . . . . . Distress Signals . | . . . . . . . . . . . . . . . . . . . Times Spotted 399 | . 17 6 57 3 . 10 61 33 34 25 . 12 32 6 27 41 17 18 Peak Tracking Total 10 | . 4 3 6 2 . 4 6 5 10 5 . 3 5 3 6 5 4 8 Tactical Retreats 21 | . 3 2 5 . . . 5 1 1 1 . . 1 . 1 1 . . Traps | -11 -10 -10 -9 -9 -9 -8 -8 -8 -8 -8 -7 -7 -6 -6 -6 -6 -6 -6 ------- Run | Yrd Mat Min Mat Min Exi Min Mat Gar Mat Gar Fac Gar Fac Was Fac Gar Fac Gar Traps Triggered 28 | . 1 . 3 . . . 2 7 . 8 . 3 1 . . 2 1 . Indirectly 1 | . . . 1 . . . . . . . . . . . . . . . Trap Hack Attempts . | . . . . . . . . . . . . . . . . . . . Triggered . | . . . . . . . . . . . . . . . . . . . Disarmed . | . . . . . . . . . . . . . . . . . . . Reprogrammed . | . . . . . . . . . . . . . . . . . . . Reused . | . . . . . . . . . . . . . . . . . . . Traps Extracted . | . . . . . . . . . . . . . . . . . . . Installed . | . . . . . . . . . . . . . . . . . . . Triggered . | . . . . . . . . . . . . . . . . . . . Machines | -11 -10 -10 -9 -9 -9 -8 -8 -8 -8 -8 -7 -7 -6 -6 -6 -6 -6 -6 ---------- Run | Yrd Mat Min Mat Min Exi Min Mat Gar Mat Gar Fac Gar Fac Was Fac Gar Fac Gar Machines Disabled 50 | . . 1 7 . . . 5 10 2 5 . 4 2 . 1 3 10 . Max in Single Turn 4 | . . 1 4 . . . 1 2 1 1 . 1 . . 1 1 4 . Garrison Access 1 | . . . . . . . . . . . . . 1 . . . . . Garrison Relay 15 | . . . . . . . . 5 . 4 . 4 . . . 2 . . Phase Generator 1 | . . . . . . . . 1 . . . . . . . . . . Machines Repaired . | . . . . . . . . . . . . . . . . . . . Machines Dismantled . | . . . . . . . . . . . . . . . . . . . Machines Sabotaged . | . . . . . . . . . . . . . . . . . . . Overloaded Fab Kills . | . . . . . . . . . . . . . . . . . . . Hacking | -11 -10 -10 -9 -9 -9 -8 -8 -8 -8 -8 -7 -7 -6 -6 -6 -6 -6 -6 --------- Run | Yrd Mat Min Mat Min Exi Min Mat Gar Mat Gar Fac Gar Fac Was Fac Gar Fac Gar Machines Accessed 69 | . 9 . 10 . 4 . 15 3 7 2 1 1 6 . 6 1 4 . Terminals 42 | . 7 . 9 . . . 10 3 4 2 . 1 2 . 1 1 2 . Fabricators 4 | . . . . . . . . . . . . . 2 . 2 . . . Repair Stations 1 | . . . . . . . 1 . . . . . . . . . . . Recycling Units 9 | . 2 . . . . . 1 . 2 . . . 1 . 2 . 1 . Scanalyzers 3 | . . . 1 . . . 2 . . . . . . . . . . . Garrison Access 6 | . . . . . . . 1 . 1 . 1 . 1 . 1 . 1 . Total Hacks 227 | . 21 . 49 . 35 . 52 4 20 3 1 2 16 . 15 2 7 . Successful 157 | . 14 . 26 . 35 . 40 3 13 2 1 1 12 . 6 1 3 . Failed 67 | . 6 . 22 . . . 11 1 7 1 . 1 4 . 9 1 4 . Catastrophic 12 | . 1 . . . . . 3 1 2 1 . . 2 . 1 . 1 . Database Lockouts 3 | . 1 . 1 . . . 1 . . . . . . . . . . . Manual 104 | . 15 . 31 . 1 . 22 . 16 1 . . 10 . 6 . 2 . Terminals 147 | . 19 . 43 . . . 39 4 17 3 . 2 11 . 3 2 4 . Fabricators 9 | . . . . . . . . . . . . . 3 . 6 . . . Repair Stations 2 | . . . . . . . 2 . . . . . . . . . . . Recycling Units 13 | . 2 . . . . . 1 . 2 . . . 1 . 5 . 2 . Scanalyzers 15 | . . . 6 . . . 9 . . . . . . . . . . . Garrison Access 6 | . . . . . . . 1 . 1 . 1 . 1 . 1 . 1 . Terminal Hacks 86 | . 6 . 12 . 35 . 18 3 2 2 . 1 5 . . 1 1 . Record 37 | . . . . . 34 . 3 . . . . . . . . . . . Part Schematic 1 | . . . . . . . . . . . . . . . . . 1 . Robot Schematic 3 | . 1 . 1 . . . . . . . . . 1 . . . . . Robot Analysis 4 | . 1 . 2 . . . 1 . . . . . . . . . . . Prototype ID Bank 7 | . 1 . 3 . . . 2 . 1 . . . . . . . . . Emergency Access Points 3 | . . . . . . . . 1 . 1 . . . . . 1 . . Terminal Index 3 | . . . 1 . . . 1 . . . . . 1 . . . . . Garrison Index 1 | . . . . . . . 1 . . . . . . . . . . . Alert Level 3 | . . . 1 . . . 2 . . . . . . . . . . . Unreport Threat 7 | . . . . . . . 4 . . . . . 3 . . . . . Locate Traps 7 | . 2 . 2 . . . 2 . 1 . . . . . . . . . Dispatch Records 1 | . . . 1 . . . . . . . . . . . . . . . Hauler Manifests 1 | . . . . . . . 1 . . . . . . . . . . . Registered Components 1 | . 1 . . . . . . . . . . . . . . . . . Zone Layout 2 | . . . 1 . . . 1 . . . . . . . . . . . Garrison Registry 3 | . . . . . . . . 1 . 1 . 1 . . . . . . Security Stations 1 | . . . . . . . . 1 . . . . . . . . . . Derelict Proto ID Bank 1 | . . . . . 1 . . . . . . . . . . . . . Fabricator Hacks 5 | . . . . . . . . . . . . . 3 . 2 . . . Network Status 1 | . . . . . . . . . . . . . . . 1 . . . Load Schematic 2 | . . . . . . . . . . . . . 1 . 1 . . . Build 2 | . . . . . . . . . . . . . 2 . . . . . Repair Station Hacks 2 | . . . . . . . 2 . . . . . . . . . . . Scan Component 1 | . . . . . . . 1 . . . . . . . . . . . Repair 1 | . . . . . . . 1 . . . . . . . . . . . Recycling Unit Hacks . | . . . . . . . . . . . . . . . . . . . Scanalyzer 12 | . . . 3 . . . 9 . . . . . . . . . . . Insert Component 6 | . . . 2 . . . 4 . . . . . . . . . . . Analyze 6 | . . . 1 . . . 5 . . . . . . . . . . . Garrison Access Hacks 6 | . . . . . . . 1 . 1 . 1 . 1 . 1 . 1 . Unlock Access 6 | . . . . . . . 1 . 1 . 1 . 1 . 1 . 1 . Unauthorized Hacks 46 | . 8 . 11 . . . 10 . 10 . . . 3 . 3 . 1 . Terminals 37 | . 6 . 11 . . . 9 . 8 . . . 2 . 1 . . . Botnet 12 | . . . 4 . . . 2 . 3 . . . 2 . 1 . . . Operators 3 | . 1 . 1 . . . . . 1 . . . . . . . . . Skim 22 | . 5 . 6 . . . 7 . 4 . . . . . . . . . Fabricators . | . . . . . . . . . . . . . . . . . . . Repair Stations . | . . . . . . . . . . . . . . . . . . . Recycling Units 9 | . 2 . . . . . 1 . 2 . . . 1 . 2 . 1 . Tunnel 9 | . 2 . . . . . 1 . 2 . . . 1 . 2 . 1 . Scanalyzers . | . . . . . . . . . . . . . . . . . . . Garrison Access . | . . . . . . . . . . . . . . . . . . . Data Cores Recovered . | . . . . . . . . . . . . . . . . . . . Used . | . . . . . . . . . . . . . . . . . . . Hacking Detections 46 | . 6 . 10 . . . 12 1 5 2 . . 2 . 5 1 2 . Full Trace Events 9 | . . . 2 . . . 3 1 1 . . . . . 1 . 1 . Feedback Events . | . . . . . . . . . . . . . . . . . . . Feedback Blocked . | . . . . . . . . . . . . . . . . . . . Robot Schematics Acquired 3 | . 1 . 1 . . . . . . . . . 1 . . . . . Robots Built 3 | . . . . . . . . . . . . . 3 . . . . . Authchips 1 | . . . . . . . . . . . . . 1 . . . . . Time 148 | . . . . . . . . . . . . . 148 . . . . . Total Robot Build Rating 9 | . . . . . . . . . . . . . 9 . . . . . Part Schematics Acquired 4 | . . . . . . . 3 . . . . . . . . . 1 . Parts Built . | . . . . . . . . . . . . . . . . . . . Authchips . | . . . . . . . . . . . . . . . . . . . Time . | . . . . . . . . . . . . . . . . . . . Total Part Build Rating . | . . . . . . . . . . . . . . . . . . . Parts Repaired 1 | . . . . . . . 1 . . . . . . . . . . . Time 60 | . . . . . . . 60 . . . . . . . . . . . Parts Recycled . | . . . . . . . . . . . . . . . . . . . Recycled Matter . | . . . . . . . . . . . . . . . . . . . Retrieved Matter . | . . . . . . . . . . . . . . . . . . . Retrieved Components . | . . . . . . . . . . . . . . . . . . . Parts Scanalyzed 4 | . . . 1 . . . 3 . . . . . . . . . . . Part Schematics Acquired 3 | . . . . . . . 3 . . . . . . . . . . . Parts Damaged 1 | . . . 1 . . . . . . . . . . . . . . . Bothacking | -11 -10 -10 -9 -9 -9 -8 -8 -8 -8 -8 -7 -7 -6 -6 -6 -6 -6 -6 ------------ Run | Yrd Mat Min Mat Min Exi Min Mat Gar Mat Gar Fac Gar Fac Was Fac Gar Fac Gar Used RIF Installer 4 | . . . . . . . . 1 . 1 . 1 . . . 1 . . Coupler Efficiency 1 | . . . . . . . . . . 1 . . . . . . . . Hotswap 1 | . . . . . . . . . . . . . . . . 1 . . Threat Obfuscator 1 | . . . . . . . . . . . . 1 . . . . . . Robots Hacked 41 | . . . . . 4 . . . 2 2 . 6 10 6 1 8 2 . Non-combat 10 | . . . . . 3 . . . . . . . 4 . 1 . 2 . Combat 31 | . . . . . 1 . . . 2 2 . 6 6 6 . 8 . . Robot Hacks Applied 44 | . . . . . 4 . . . 2 2 . 6 11 7 1 9 2 . parse_system 12 | . . . . . 4 . . . . . . . 3 1 . 2 2 . find_chute 1 | . . . . . . . . . . . . . 1 . . . . . ignore_parts 1 | . . . . . . . . . . . . . 1 . . . . . mark_security 1 | . . . . . . . . . . . . . . . 1 . . . ignore_targets 6 | . . . . . . . . . . . . . . 6 . . . . disable_weapons 1 | . . . . . . . . . . . . . . . . 1 . . overwrite_iff 2 | . . . . . . . . . . . . . . . . 2 . . formatsys_low 1 | . . . . . . . . . . . . . 1 . . . . . formatsys_high 19 | . . . . . . . . . 2 2 . 6 5 . . 4 . . Relay Couplers Released 54 | . . . . . . . . 18 . 12 . 14 . . . 10 . . Machine Destruction 54 | . . . . . . . . 18 . 12 . 14 . . . 10 . . Attached 17 | . . . . . . . . . 1 2 . 5 3 . . 5 1 . Fabnet Peak Effective % . | . . . . . . . . . . . . . . . . . . . Robots Rewired 8 | . . . . . . . . . . 3 . . . . . 5 . . Allies Hacked 1 | . . . . . . . . . . . . . 1 . . . . . Hacks Repelled . | . . . . . . . . . . . . . . . . . . . Allies | -11 -10 -10 -9 -9 -9 -8 -8 -8 -8 -8 -7 -7 -6 -6 -6 -6 -6 -6 -------- Run | Yrd Mat Min Mat Min Exi Min Mat Gar Mat Gar Fac Gar Fac Was Fac Gar Fac Gar Total Allies 42 | . . . . 2 . . . . 2 5 . 6 10 1 . 13 . 3 Largest Group 8 | . . . . 2 2 . . . 2 3 . 3 8 2 . 7 7 2 Highest-Rated Group 263 | . . . . 50 50 . . . 32 48 . 64 236 54 . 263 263 85 Highest-Rated Ally 85 | . . . . 31 31 . . . 16 16 . 32 37 31 . 85 85 85 Total Orders 3 | . . . . . . . . . . 2 . . . 1 . . . . STAY 1 | . . . . . . . . . . 1 . . . . . . . . FOLLOW 1 | . . . . . . . . . . 1 . . . . . . . . AID 1 | . . . . . . . . . . . . . . 1 . . . . Ally Attacks 317 | . . . . 11 . . . . 13 40 . 23 72 27 . 76 35 20 Total Damage 8204 | . . . . 124 . . . . 157 516 . 408 2058 358 . 2214 1311 1058 Kills 68 | . . . . . . . . . 2 6 . 5 20 . . 20 6 9 Allies Corrupted . | . . . . . . . . . . . . . . . . . . . Allies Melted . | . . . . . . . . . . . . . . . . . . . Field Lobotomies 3 | . . . . . . . . . . . . . . . . . . 3 Intel | -11 -10 -10 -9 -9 -9 -8 -8 -8 -8 -8 -7 -7 -6 -6 -6 -6 -6 -6 ------- Run | Yrd Mat Min Mat Min Exi Min Mat Gar Mat Gar Fac Gar Fac Was Fac Gar Fac Gar Robot Analysis Total 3 | . 1 . 2 . . . . . . . . . . . . . . . Derelict Logs Recovered 2 | . . 1 . 1 . . . . . . . . . . . . . . Drone Launches . | . . . . . . . . . . . . . . . . . . . Drone Recoveries . | . . . . . . . . . . . . . . . . . . . Exploration | -11 -10 -10 -9 -9 -9 -8 -8 -8 -8 -8 -7 -7 -6 -6 -6 -6 -6 -6 ------------- Run | Yrd Mat Min Mat Min Exi Min Mat Gar Mat Gar Fac Gar Fac Was Fac Gar Fac Gar Turns Passed 24184 | 117 1192 687 3698 1795 558 790 3196 2383 1062 1411 194 1190 1298 1046 916 1263 1016 372 Spaces Moved 9261 | 62 572 354 1488 705 267 314 1006 807 312 472 75 454 479 243 386 560 547 158 Core 33 | 31 . . . . . . . . . . . . . . . . 1 1 Treads 8940 | 31 572 354 1488 705 267 314 998 807 271 472 75 454 479 243 386 560 410 54 Legs 247 | . . . . . . . 8 . . . . . . . . . 136 103 Wheels 41 | . . . . . . . . . 41 . . . . . . . . . Hover . | . . . . . . . . . . . . . . . . . . . Flight . | . . . . . . . . . . . . . . . . . . . Fastest Speed 45 | 50 160 160 160 250 170 170 45 240 170 245 243 240 160 235 160 160 120 100 Average Speed 210 | 105 160 160 208 250 203 223 235 247 233 245 243 240 223 239 163 160 151 164 Slowest Speed 650 | 160 160 160 250 250 250 250 330 250 305 245 245 243 240 315 240 160 650 320 Overloaded Moves 4 | . . . . . . . 4 . . . . . . . . . . . Propulsion Burnouts . | . . . . . . . . . . . . . . . . . . . Robots Hopped . | . . . . . . . . . . . . . . . . . . . Cave-ins Triggered . | . . . . . . . . . . . . . . . . . . . Exploration Rate (%) 54 | 4 92 69 91 98 64 70 85 82 37 68 2 59 12 96 12 61 14 24 Regions Visited 18 Branch Regions 4 Pre-discovered Areas 18 | . 4 . 4 . 1 . 3 . 2 . . . 1 . 2 . 1 . Known Exits Taken 8 | . 1 1 . . . 1 1 . 1 . 1 . . . 1 . 1 . Unknown Exits Taken 4 | 1 . . 1 1 1 . . . . . . . . . . . . . Scrap Searched 2 | . . . . 1 . 1 . . . . . . . . . . . . Spaces Dug 35 | . . . 6 1 . . 11 17 . . . . . . . . . . Terrain Destroyed 572 | . 4 16 72 1 . . 77 201 88 . . . 1 11 40 1 60 . Melee 7 | . . . 6 1 . . . . . . . . . . . . . . Projectile 115 | . 4 . 16 . . . 3 51 4 . . . 1 11 3 1 21 . AOE 450 | . . 16 50 . . . 74 150 84 . . . . . 37 . 39 . Terrain Rammed . | . . . . . . . . . . . . . . . . . . . Walls Destroyed . | . . . . . . . . . . . . . . . . . . . Machines Disabled . | . . . . . . . . . . . . . . . . . . . Actions | -11 -10 -10 -9 -9 -9 -8 -8 -8 -8 -8 -7 -7 -6 -6 -6 -6 -6 -6 --------- Run | Yrd Mat Min Mat Min Exi Min Mat Gar Mat Gar Fac Gar Fac Was Fac Gar Fac Gar Total 12296 | 97 745 435 1844 723 279 358 1559 1006 562 610 87 529 630 618 551 799 641 223 Wait 1189 | 14 89 59 136 5 . 5 268 23 178 28 2 19 34 237 45 41 5 1 Move 9247 | 61 571 353 1487 704 266 313 1006 806 311 471 75 452 479 242 386 559 547 158 Hop . | . . . . . . . . . . . . . . . . . . . Pick Up 211 | 7 18 1 28 1 4 13 36 11 2 5 2 6 6 10 19 31 10 1 Fast Attach 129 | 3 1 . 8 . . 1 16 5 5 2 2 3 14 12 9 21 9 18 Attach 81 | 4 . . 8 3 2 . 12 5 2 1 2 3 3 2 10 16 2 6 Detach 13 | . . . 1 . 2 . 1 . . . . . 3 . 2 4 . . Swap 171 | . 6 1 12 1 1 2 36 11 11 14 1 14 19 10 6 14 8 4 Drop 201 | . 8 1 33 . . 2 37 10 7 7 3 9 15 22 12 18 7 10 Fire 979 | 8 52 20 125 8 . 22 144 118 41 64 . 17 55 80 62 91 47 25 Melee 31 | . . . 6 1 4 . . 5 3 3 . . 2 3 . . 4 . Ram . | . . . . . . . . . . . . . . . . . . . Kick . | . . . . . . . . . . . . . . . . . . . Crush 5 | . . . . . . . 3 . . . . . . . . . 2 . Escape Stasis 30 | . . . . . . . . 12 . 14 . 4 . . . . . . Rewire 9 | . . . . . . . . . 2 1 . 2 . . . 4 . . Trap . | . . . . . . . . . . . . . . . . . . . Miscellaneous . | . . . . . . . . . . . . . . . . . . . Route ------- -11/Scrapyard -10/Materials (discovered 6 exits: *Mat x3 / *Min x2 / Sub) -10/Mines (discovered 3 exits: *Mat x2 / Sub) -9/Materials (discovered 5 exits: *Mat x3 / [*Min] / *Sto) -9/Mines (discovered 4 exits: *Mat x2 / *Exi / [*Zio]) -9/Exiles -8/Mines -8/Materials (discovered 3 exits: *Fac x2 / Gar) -8/Garrison (discovered 3 exits: *Mat x3) -8/Materials (discovered 2 exits: *Fac / Gar) -8/Garrison (discovered 4 exits: *Fac x3 / [*Mat]) -7/Factory -7/Garrison (discovered 3 exits: *Fac x3) -6/Factory -6/Waste -6/Factory -6/Garrison (discovered 2 exits: *Fac x2) -6/Factory (discovered 2 exits: *Fac / Gar) -6/Garrison History --------- Turn | Location | Event 14 | -11/Scrapyard | Discovered new exit (range 14) 118 | -11/Scrapyard | Entered Materials 214 | -10/Materials | Discovered new exit (range 15) 301 | -10/Materials | Build established: Mutant 511 | -10/Materials | Discovered new exit (range 16) 735 | -10/Materials | Identified exit to Materials 735 | -10/Materials | Identified exit to Subcaves 791 | -10/Materials | Identified exit to Mines 836 | -10/Materials | Learned Storage interactive machine intel 869 | -10/Materials | Learned location of 1 exit from Storage 892 | -10/Materials | Learned location of Recycling (-9) 904 | -10/Materials | Learned location of Storage (-9) 922 | -10/Materials | Learned location of 2 exits from Mines 946 | -10/Materials | Learned Storage stockpile data 981 | -10/Materials | Learned location of 2 exits from Materials 1028 | -10/Materials | Loaded intel: 1 repair station location 1175 | -10/Materials | Central database locked down 1310 | -10/Materials | Entered Mines 1330 | -10/Mines | Met a Derelict bent on vengeance 1702 | -10/Mines | Found a damaged Exp. Sensor Array with a note attached 1707 | -10/Mines | Found Prototype Device 1997 | -10/Mines | Entered Materials 1997 | -9/Materials | Evolved 2 slots: Utility x2 1998 | -9/Materials | Identified exit to Storage 1998 | -9/Materials | Identified exit to Materials 2180 | -9/Materials | Identified Exp. Sensor Array 5007 | -9/Materials | Discovered exit to Materials (range 10) 5244 | -9/Materials | Core integrity fell below 50% 5263 | -9/Materials | Central database locked down 5486 | -9/Materials | Learned Storage emergency access door positions 5516 | -9/Materials | Learned Storage trap positions 5572 | -9/Materials | Loaded intel: 12 terminal locations 5597 | -9/Materials | First assault squad dispatched 5613 | -9/Materials | Discovered new exit (range 6) 5695 | -9/Materials | Entered Mines 5709 | -9/Mines | Assembled infested the area 5766 | -9/Mines | Lost 3 parts (1n1u1w) 5796 | -9/Mines | Received a Rocket Launcher from a helpful Derelict 5958 | -9/Mines | Learned Materials terminal intel 6277 | -9/Mines | A Derelict revealed a hidden shortcut to a safe place 6719 | -9/Mines | Discovered new exit (range 5) 7490 | -9/Mines | Entered Exiles 7490 | -9/Exiles | Accompanied by 2 allies 7520 | -9/Exiles | Led the pair of lost Derelicts to a safe place 7550 | -9/Exiles | Met 8R-AWN 7598 | -9/Exiles | Met EX-HEX 7667 | -9/Exiles | Met EX-BIN 7699 | -9/Exiles | Aligned with FarCom system 7701 | -9/Exiles | Given EX-Vault access code 7766 | -9/Exiles | Opened EX-Vault 7779 | -9/Exiles | Found Lightpack 2.0 7787 | -9/Exiles | Found Field Lobotomy Kit 7797 | -9/Exiles | Found Potential Leg 7799 | -9/Exiles | Found Potential Leg 7873 | -9/Exiles | Warned to stay clear of 0b10 Research branches 7920 | -9/Exiles | Met EX-DEC 7966 | -9/Exiles | Learned location of Zion (-7) 8027 | -9/Exiles | Discovered new exit (range 14) 8048 | -9/Exiles | Stole three prototypes: Lightpack 2.0, Potential Leg, Field Lobotomy Kit 8048 | -9/Exiles | Entered Mines 8090 | -8/Mines | Build established: Hauler-Mutant 8523 | -8/Mines | Build established: Mutant 8766 | -8/Mines | Discovered exit to Materials (range 9) 8838 | -8/Mines | Entered Materials 8838 | -8/Materials | Evolved 2 slots: Utility x2 8839 | -8/Materials | Loaded intel: 12 terminal locations 9979 | -8/Materials | Learned 4 Lower Caves zone layouts 9998 | -8/Materials | Learned Storage security intel 10006 | -8/Materials | Learned 8 Factory zone layouts 10007 | -8/Materials | Learned 4 Factory zone layouts 10008 | -8/Materials | Learned location of 1 exit from Extension 10013 | -8/Materials | Build established: Hacker-Mutant 10203 | -8/Materials | Discovered new exit (range 6) 11243 | -8/Materials | Repaired Prc. Beam Rifle 11513 | -8/Materials | Central database locked down 11888 | -8/Materials | Garrison activated, responded to threat 11962 | -8/Materials | Discovered new exit (range 15) 11971 | -8/Materials | Lost 10 parts (1p1n4u4w) 11975 | -8/Materials | Destroyed 8 combat bots 12034 | -8/Materials | Identified exit to Garrison 12034 | -8/Materials | Entered Garrison 12112 | -8/Garrison | Triggered checkpoint 12191 | -8/Garrison | Garrison Relay disabled 12236 | -8/Garrison | Build established: Scavenger-Mutant 12440 | -8/Garrison | Triggered checkpoint 12459 | -8/Garrison | Triggered checkpoint 12479 | -8/Garrison | Core integrity fell below 50% 12578 | -8/Garrison | Discovered new exit (range 10) 12626 | -8/Garrison | Triggered checkpoint 12758 | -8/Garrison | Triggered checkpoint 12805 | -8/Garrison | Garrison Relay disabled 12902 | -8/Garrison | Phase Generator disabled 13083 | -8/Garrison | Garrison Relay disabled 13096 | -8/Garrison | Triggered checkpoint 13132 | -8/Garrison | Triggered checkpoint 13291 | -8/Garrison | Discovered new exit (range 5) 13373 | -8/Garrison | Learned Materials security intel 13486 | -8/Garrison | Triggered checkpoint 13558 | -8/Garrison | Lost 3 parts (1p1n1w) 13602 | -8/Garrison | Garrison Relay disabled 13859 | -8/Garrison | Spotted B-75 Beast 14148 | -8/Garrison | Triggered checkpoint 14176 | -8/Garrison | Discovered new exit (range 32) 14176 | -8/Garrison | Discovered new exit (range 73) 14176 | -8/Garrison | Discovered new exit (range 42) 14200 | -8/Garrison | Garrison Relay disabled 14313 | -8/Garrison | Installed Relay Interface Framework 14350 | -8/Garrison | Triggered checkpoint 14417 | -8/Garrison | Entered Materials 14817 | -8/Materials | First assault squad dispatched 14901 | -8/Materials | Destroyed 10 combat bots 15000 | -8/Materials | Discovered new exit (range 16) 15149 | -8/Materials | Build established: Hacker-Mutant 15403 | -8/Materials | Garrison activated, responded to threat 15467 | -8/Materials | Identified exit to Garrison 15479 | -8/Materials | Entered Garrison 15479 | -8/Garrison | Accompanied by 2 allies 15575 | -8/Garrison | Triggered checkpoint 15620 | -8/Garrison | Garrison Relay disabled 15746 | -8/Garrison | Triggered checkpoint 15801 | -8/Garrison | Triggered checkpoint 15863 | -8/Garrison | Triggered checkpoint 15927 | -8/Garrison | Triggered checkpoint 16057 | -8/Garrison | Garrison Relay disabled 16075 | -8/Garrison | Triggered checkpoint 16122 | -8/Garrison | Discovered new exit (range 3) 16268 | -8/Garrison | Discovered new exit (range 10) 16297 | -8/Garrison | Discovered new exit (range 7) 16297 | -8/Garrison | Discovered new exit (range 66) 16297 | -8/Garrison | Discovered new exit (range 76) 16297 | -8/Garrison | Discovered new exit (range 43) 16453 | -8/Garrison | Triggered checkpoint 16491 | -8/Garrison | Lost 3 allies 16573 | -8/Garrison | Triggered checkpoint 16602 | -8/Garrison | Core integrity fell below 20% 16602 | -8/Garrison | Garrison Relay disabled 16661 | -8/Garrison | Expanded RIF knowledge: Coupler Efficiency 16691 | -8/Garrison | Triggered checkpoint 16812 | -8/Garrison | Garrison Relay disabled 16890 | -8/Garrison | Entered Factory 16890 | -7/Factory | Evolved 2 slots: Propulsion x1, Utility x1 16892 | -7/Factory | FarCom data flow suspended 17084 | -7/Factory | Identified exit to Garrison 17084 | -7/Factory | Entered Garrison 17106 | -7/Garrison | Expanded RIF knowledge: Threat Obfuscation 17189 | -7/Garrison | Build established: Scavenger-Mutant 17208 | -7/Garrison | Triggered checkpoint 17238 | -7/Garrison | Garrison Relay disabled 17351 | -7/Garrison | Garrison Relay disabled 17476 | -7/Garrison | Triggered checkpoint 17504 | -7/Garrison | Triggered checkpoint 17589 | -7/Garrison | Discovered new exit (range 10) 17640 | -7/Garrison | Triggered checkpoint 17657 | -7/Garrison | Build established: Bothacker-Mutant 17659 | -7/Garrison | Garrison Relay disabled 17829 | -7/Garrison | Lost 3 allies 17924 | -7/Garrison | Triggered checkpoint 18028 | -7/Garrison | Triggered checkpoint 18076 | -7/Garrison | Garrison Relay disabled 18121 | -7/Garrison | Discovered new exit (range 34) 18121 | -7/Garrison | Discovered new exit (range 32) 18121 | -7/Garrison | Discovered new exit (range 69) 18274 | -7/Garrison | Entered Factory 18274 | -6/Factory | Accompanied by 1 ally 18274 | -6/Factory | Evolved 2 slots: Propulsion x1, Utility x1 18372 | -6/Factory | Garrison activated, responded to threat 18587 | -6/Factory | Fabricated P-60 Hacker? 18633 | -6/Factory | Fabricated A-02 Transporter? 18727 | -6/Factory | Build established: Scavenger-Mutant 18768 | -6/Factory | Hacker 5a assimilated hostile L-41 Fighter 18774 | -6/Factory | Garrison activated, responded to threat 18802 | -6/Factory | Identified exit to Garrison 18870 | -6/Factory | Discovered new exit (range 14) 19038 | -6/Factory | P-60 Hacker assimilated allied Guardian 5a 19048 | -6/Factory | P-60 Hacker assimilated allied Fighter 5a 19457 | -6/Factory | Build established: Hacker-Mutant 19572 | -6/Factory | Sucked down chute 19572 | -6/Factory | Entered Waste 19573 | -6/Waste | Met a frightened Derelict 19587 | -6/Waste | EMP discharged 19627 | -6/Waste | 1 allies followed down the chute 19672 | -6/Waste | System corruption reached 10% 19674 | -6/Waste | Spotted C-40 Crusher 19687 | -6/Waste | EMP discharged 19708 | -6/Waste | Spotted C-40 Crusher 19721 | -6/Waste | Spotted C-40 Crusher 19734 | -6/Waste | Crushed by Compactor (1 part destroyed, 1 dropped) 19787 | -6/Waste | EMP discharged 19808 | -6/Waste | Destroyed C-40 Crusher 19816 | -6/Waste | Found Damper Plating 19828 | -6/Waste | Spotted C-40 Crusher 19840 | -6/Waste | Spotted C-40 Crusher 19845 | -6/Waste | Spotted C-40 Crusher 19887 | -6/Waste | EMP discharged 19949 | -6/Waste | Destroyed C-40 Crusher 19987 | -6/Waste | EMP discharged 20065 | -6/Waste | Destroyed C-40 Crusher 20087 | -6/Waste | EMP discharged 20130 | -6/Waste | Build established: Scavenger-Mutant 20187 | -6/Waste | EMP discharged 20287 | -6/Waste | EMP discharged 20338 | -6/Waste | Destroyed C-40 Crusher 20387 | -6/Waste | EMP discharged 20487 | -6/Waste | EMP discharged 20519 | -6/Waste | Discovered new exit (range 11) 20587 | -6/Waste | EMP discharged 20618 | -6/Waste | Entered Factory 20835 | -6/Factory | Found Unknown Device 20835 | -6/Factory | Identified Launcher Loader 21015 | -6/Factory | Build established: Hauler-Mutant 21033 | -6/Factory | Destroyed 7 combat bots 21306 | -6/Factory | Garrison activated, responded to threat 21534 | -6/Factory | Identified exit to Garrison 21534 | -6/Factory | Entered Garrison 21662 | -6/Garrison | Lost 4 parts (1p1u2w) 21682 | -6/Garrison | Triggered checkpoint 21682 | -6/Garrison | Garrison Relay disabled 21772 | -6/Garrison | Triggered checkpoint 21858 | -6/Garrison | Triggered checkpoint 21936 | -6/Garrison | Discovered new exit (range 8) 21948 | -6/Garrison | Found embedded Infiltrators 21966 | -6/Garrison | Triggered checkpoint 22023 | -6/Garrison | Garrison Relay disabled 22091 | -6/Garrison | Core integrity fell below 50% 22158 | -6/Garrison | Found Launcher Loader 22183 | -6/Garrison | Spotted B-90 Cyclops 22190 | -6/Garrison | Allies destroyed B-90 Cyclops 22190 | -6/Garrison | Spotted B-86 Titan 22201 | -6/Garrison | Allies destroyed B-86 Titan 22201 | -6/Garrison | Rewired B-75 Beast 22325 | -6/Garrison | Build established: Bothacker-Mutant 22386 | -6/Garrison | Triggered checkpoint 22468 | -6/Garrison | Discovered new exit (range 21) 22483 | -6/Garrison | Expanded RIF knowledge: Hotswap 22781 | -6/Garrison | Build established: Hauler-Mutant 22797 | -6/Garrison | Entered Factory 22797 | -6/Factory | Accompanied by 7 allies 22829 | -6/Factory | Spotted B-75 Beast 22872 | -6/Factory | Allies destroyed B-75 Beast 22944 | -6/Factory | System corruption reached 30% 23636 | -6/Factory | Lost 4 parts (3n1w) 23640 | -6/Factory | Discovered new exit (range 8) 23674 | -6/Factory | Identified exit to Factory 23813 | -6/Factory | Identified exit to Garrison 23813 | -6/Factory | Entered Garrison 23819 | -6/Garrison | Triggered checkpoint 24000 | -6/Garrison | Spotted B-75 Beast 24025 | -6/Garrison | Assimilated B-75 Beast with FLK Orb 24029 | -6/Garrison | Triggered checkpoint 24050 | -6/Garrison | Core integrity fell below 20% 24059 | -6/Garrison | Triggered checkpoint 24076 | -6/Garrison | Lost 4 parts (2n1u1w) 24181 | -6/Garrison | Assimilated G-50 Soldier with FLK Orb 24184 | -6/Garrison | Assimilated G-67 Veteran with FLK Orb 24185 | -6/Garrison | Destroyed by S-27 Virus with Autogun Last Messages --------------- 24143_ Slug penetrates Wall. 24146_ System corrupted: Phase Cannon failed to cycle. 24147_ Slug penetrates Wall. 24148_ H-66 Slayer destroyed. 24149_ H OSRPI2VUJ7KWGQMHG9W2I0P 24150_ Slug penetrates Wall. 24153_ Wall collapses. 24153_ H-66 Slayer destroyed. 24156_ Beast 5b suffers critical hit (Burn). 24162_ G-67 Veteran knocked back. 24168_ Beast 5b suffers critical hit (Burn). 24168_ Beast 5b destroyed. 24169_ System corrupted: Matter fused (-10). 24173_ Dropped Cesium-ion Thruster. 24174_ Acquired Imp. Medium Treads. 24175_ Adv. Cooling System destroyed. 24181_ G-50 Soldier assimilated. 24183_ S-27 Virus destroyed. 24184_ G-67 Veteran assimilated. 24185_ System corrupted: Matter fused (-7). Map ----- +----------------------------------------------------+ | ?????????????????????????????????????????????????? | | ?????????????????????????????????????????????????? | | ?????????????????????????????????????????????????? | | ?????????????????????????????????????????????????? | | ?????????????????????????????????????????????????? | | ?????????????????????????????????????????????????? | | ?????????????????????????????????????????????????? | | ?????????????????????????????????????????????????? | | ?????????????????????????????????????????????????? | | ?????????????????????????????????????????????????? | | ?????????????????????????????????????????????????? | | ?????????????????????????????????????????????????? | | ?????????????????????????????????????????????????? | | ?????????????????????????????????????????????????? | | ?????????????????????????????????????????????????? | | ????????????????#?????????????#??????????????????? | | ??????????????### ????????? +???????????????????? | | ??????????????? + ????????# #???????????????????? | | ????????????????# ???????#% #???????????????????? | | ???????????????## ##""""##%[##??????????????????? | | ?????????####### s * %#####??????????????? | | ???????? [! =Y ???????????????? | | ???????????? [%s% ?????????????????? | | ???????????????#%= #[ sg ## #??????????????????? | | ???????????????# % ##^ ^ ## ###????????????????? | | ???????????????" ^=@g[ #????????????????? | | ???????????????" = #????????????????? | | ???????????????" #????????????????? | | ???????????????" %* #????????????????? | | ???????????????# ## ## ###????????????????? | | ?????########### ## ## %############???????? | | ?????# = / #???????? | | ?????# [=[= % #???????? | | ??????????######%! * #???????? | | ???????????????##|!## ##";######### / #???????? | | ????????????????# ## ## #???????# #???????? | | ????????????????# ######## #???????#*! #???????? | | ????????????????# #??????# #?????? !!^^#???????? | | ????????????????# #??????# #?????###^^^#???????? | | ????????????????# #??????# #???????# #???????? | | ????????????????# #??????# ######### ##??????? | | ???????????????? #??????# # =%???????? | | ???????????????? #??????# # *%==??????? | | ????????????????## #??????###### ##### ##??????? | | ?????????????????? #???????????# #???# #???????? | | ?????????????????? #???????????# #???# #???????? | | ?????????????????? ????????##### #???# #???????? | | ?????????????????? ????????# !## #???# #???????? | | ?????????????????? ????????#! #???# #???????? | | ???????????????????????????# !## #???# #???????? | +----------------------------------------------------+ Best States ------------- Heat Dissipation 95 Energy Generation 21 Energy Capacity 480 Matter Stores 300 Matter Capacity 300 Sight Range 22 Robot Scan Range 20 Terrain Scan Density 10 Base Temperature (-) 100 EM Shielding 3 Armor Coverage 1600 Resistance: KI 20 Resistance: EM 90 Weapon Cycling 15 Phase Shifting 5 Evasion (%) 60 Targeting Accuracy 8 Recoil Reduction 4 Kinecelleration 30 Offensive Hacking 22 Defensive Hacking 10 Relay Coupler Types 2 Relay Coupler Value 62 Authchip Count 1 Item Schematics ----------------- Com. Battery | -8/Materials | Scanalyzed Prc. Beam Rifle | -8/Materials | Scanalyzed Datajack | -8/Materials | Scanalyzed Hvy. Siege Treads | -6/Factory | Hacked Robot Schematics ------------------ M-13 Machinist | -10/Materials | Hacked O-16 Technician | -9/Materials | Hacked P-60 Hacker | -6/Factory | Hacked Fabricated ------------ P-60 Hacker | x2 | -6/Factory | Authchip A-02 Transporter | x1 | -6/Factory | Preloaded Alien Tech Used ----------------- None Achievements -------------- None Challenges ------------ None Game ------ Seed ScrapoidNeutronExtrapolator Manual? 0 Play Time 03:12:30 Cumulative 136.8 hours Start 2024.10.04 @ 14:01:36 End 2024.10.04 @ 17:46:41 Sessions 3 Manual Loads 0 Difficulty Rogue Special Mode None Game No. 67 Rogue 67 Adventurer 0 Explorer 0 Win Type - Total 0 Types 0/0/0/0/0/0/0/0/0 Lore% 49 Gallery% 69 Achievement% 56 Wizard Run 0 Options --------- Layout 0 ASCII 0 Keyboard 0 Movement Mouse Keybinds 0 Fullscreen 1 Font 24/Smallcaps Map View 183x50 Zoom Use 0% Tactical HUD 1 Map Filters NONE Filters NONE Steam 0 RUN: 1f134bff-255e-4eda-86e9-7379424eb8b6